[Event "RUS-ch Women Blitz 2019"]
[Site "Sochi"]
[Date "2019.10.20"]
[Round "2.5"]
[White "Gunina, Valentina"]
[Black "Filippova, Darya"]
[Result "1-0"]
[ECO "D45"]
[WhiteElo "2356"]
[BlackElo "2010"]
[Annotator "NA"]
[PlyCount "49"]
[EventDate "2019.10.17"]
[EventType "swiss"]
[EventCountry "RUS"]
[SourceTitle "playchess.com"]
[Source "ChessBase"]
[SourceQuality "1"]
[TimeControl "180+2"]

1. d4 {[%emt 0:00:00]} Nf6 {[%emt 0:00:00]} 2. c4 {[%emt 0:00:02]} e6 {[%emt 0:00:00]} 3. Nf3 {[%emt 0:00:02]} d5 {[%emt 0:00:01]} 4. Nc3 {[%emt 0:00:01]} c6 {[%emt 0:00:00]} 5. e3 {[%emt 0:00:07]} Be7 {[%emt 0:00:02]} 6. Qc2 {[%emt 0:00:04]} Nbd7 {[%emt 0:00:06]} 7. g4 {[%emt 0:00:10]} Nxg4 {[%emt 0:00:33]} 8. Rg1 {[%emt 0:00:02]} Ndf6 {[%emt 0:00:03]} 9. h3 {[%emt 0:00:08]} Nh6 {[%emt 0:00:02]} 10. Rxg7 {[%emt 0:00:02]} Nf5 {[%emt 0:00:01]} 11. Rg1 {[%emt 0:00:02]} Nd6 {[%emt 0:00:15]} 12. c5 {[%emt 0:00:04]} Nde4 {[%emt 0:00:01]} 13. Ne5 {[%emt 0:00:02]} Bd7 {[%emt 0:00:17]} 14. Bd3 {[%emt 0:00:07]} Nxc3 {[%emt 0:00:03]} 15. Qxc3 {[%emt 0:00:02]} b6 {[%emt 0:00:15]} 16. Bd2 {[%emt 0:00:02]} Qc7 {[%emt 0:00:12]} 17. f4 {[%emt 0:00:25]} Rf8 {[%emt 0:00:20]} 18. Ke2 {[%emt 0:00:07]} b5 {[%emt 0:00:32]} 19. a4 {[%emt 0:00:04]} Rc8 {[%emt 0:00:03]} 20. axb5 {[%emt 0:00:02]} cxb5 {[%emt 0:00:01]} 21. Qa5 {[%emt 0:00:08]} Nh5 {[%emt 0:00:32]} 22. Nxd7 {[%emt 0:00:10]} Qxa5 {[%emt 0:00:10]} 23. Rxa5 {[%emt 0:00:02]} Kxd7 {[%emt 0:00:01]} 24. Bxb5+ {[%emt 0:00:06]} Kd8 {[%emt 0:00:07]} 25. Rxa7 {[%emt 0:00:02]} 1-0

[Event "RUS-ch Women Blitz 2019"]
[Site "Sochi"]
[Date "2019.10.17"]
[Round "2.6"]
[White "Bivol, Alina"]
[Black "Vifleemskaia, Svetlana"]
[Result "1-0"]
[ECO "A30"]
[WhiteElo "2371"]
[BlackElo "1978"]
[Annotator "NA"]
[PlyCount "71"]
[EventDate "2019.10.17"]
[EventType "swiss"]
[EventCountry "RUS"]
[SourceTitle "playchess.com"]
[Source "ChessBase"]
[SourceQuality "1"]
[TimeControl "180+2"]

1. c4 {[%emt 0:00:00]} c5 {[%emt 0:00:00]} 2. Nf3 {[%emt 0:00:00]} Nf6 {[%emt 0:00:00]} 3. g3 {[%emt 0:00:01]} d5 {[%emt 0:00:01]} 4. cxd5 {[%emt 0:00:04]} Nxd5 {[%emt 0:00:01]} 5. Bg2 {[%emt 0:00:01]} Nc6 {[%emt 0:00:03]} 6. Nc3 {[%emt 0:00:03]} Nc7 {[%emt 0:00:01]} 7. O-O {[%emt 0:00:03]} e5 {[%emt 0:00:15]} 8. e3 {[%emt 0:00:04]} Be7 {[%emt 0:00:04]} 9. b3 {[%emt 0:00:10]} O-O {[%emt 0:00:06]} 10. Bb2 {[%emt 0:00:01]} f6 {[%emt 0:00:13]} 11. Re1 {[%emt 0:00:11]} Rb8 {[%emt 0:00:13]} 12. d4 {[%emt 0:00:10]} cxd4 {[%emt 0:00:09]} 13. exd4 {[%emt 0:00:00]} exd4 {[%emt 0:00:01]} 14. Ne2 {[%emt 0:00:22]} d3 {[%emt 0:00:04]} 15. Ned4 {[%emt 0:00:01]} Nxd4 {[%emt 0:00:23]} 16. Nxd4 {[%emt 0:00:03]} Bb4 {[%emt 0:00:06]} 17. Re3 {[%emt 0:00:07]} d2 {[%emt 0:00:04]} 18. Qc2 {[%emt 0:00:25]} Kh8 {[%emt 0:00:24]} 19. a3 {[%emt 0:00:11]} Ba5 {[%emt 0:00:10]} 20. Rd3 {[%emt 0:00:08]} Qe7 {[%emt 0:00:07]} 21. b4 {[%emt 0:00:14]} Qe1+ 22. Bf1 Bb6 {[%emt 0:00:51]} 23. Rxd2 {[%emt 0:00:02]} Qe7 {[%emt 0:00:05]} 24. Bg2 {[%emt 0:00:23]} Bg4 {[%emt 0:00:17]} 25. h3 {[%emt 0:00:03]} Bd7 {[%emt 0:00:05]} 26. Rad1 {[%emt 0:00:14]} Rfd8 {[%emt 0:00:01]} 27. Re2 {[%emt 0:00:04]} Qf7 {[%emt 0:00:02]} 28. a4 {[%emt 0:00:05]} a5 {[%emt 0:00:04]} 29. bxa5 {[%emt 0:00:14]} Bxa5 {[%emt 0:00:02]} 30. Ba3 {[%emt 0:00:02]} Ne6 {[%emt 0:00:03]} 31. Nf5 {[%emt 0:00:19]} Qg6 {[%emt 0:00:01]} 32. Be4 {[%emt 0:00:07]} Qh5 {[%emt 0:00:03]} 33. h4 {[%emt 0:00:10]} Bxa4 {[%emt 0:00:02]} 34. Qxa4 {[%emt 0:00:02]} Qxe2 {[%emt 0:00:01]} 35. Rxd8+ {[%emt 0:00:03]} Rxd8 {[%emt 0:00:00]} 36. Kg2 {[%emt 0:00:05]} 1-0

[Event "RUS-ch Women Blitz 2019"]
[Site "Sochi"]
[Date "2019.10.20"]
[Round "2.7"]
[White "Bivol, Alina"]
[Black "Mironenko, Galina"]
[Result "1-0"]
[ECO "A20"]
[WhiteElo "2371"]
[BlackElo "2236"]
[Annotator "NA"]
[PlyCount "119"]
[EventDate "2019.10.17"]
[EventType "swiss"]
[EventCountry "RUS"]
[SourceTitle "playchess.com"]
[Source "ChessBase"]
[SourceQuality "1"]
[TimeControl "180+2"]

1. c4 {[%emt 0:00:00]} e5 {[%emt 0:00:00]} 2. g3 {[%emt 0:00:00]} Nc6 {[%emt 0:00:01]} 3. Bg2 {[%emt 0:00:02]} Nf6 {[%emt 0:00:07]} 4. Nc3 {[%emt 0:00:02]} Bc5 {[%emt 0:00:02]} 5. e3 {[%emt 0:00:01]} d5 {[%emt 0:00:03]} 6. cxd5 {[%emt 0:00:15]} Nb4 {[%emt 0:00:01]} 7. d4 {[%emt 0:00:56]} exd4 {[%emt 0:00:02]} 8. exd4 {[%emt 0:00:26]} Be7 {[%emt 0:00:02]} 9. a3 {[%emt 0:00:16]} Nbxd5 {[%emt 0:00:02]} 10. Nf3 {[%emt 0:00:03]} O-O {[%emt 0:00:08]} 11. O-O {[%emt 0:00:01]} c6 {[%emt 0:00:05]} 12. Ne5 {[%emt 0:00:02]} Be6 {[%emt 0:00:25]} 13. Re1 {[%emt 0:00:01]} Rc8 {[%emt 0:00:54]} 14. Bd2 {[%emt 0:00:04]} c5 {[%emt 0:00:44]} 15. dxc5 {[%emt 0:00:02]} Bxc5 {[%emt 0:00:04]} 16. Ne4 Nxe4 {[%emt 0:00:23]} 17. Bxe4 {[%emt 0:00:12]} Bd4 {[%emt 0:00:13]} 18. Nd3 {[%emt 0:00:18]} Qb6 {[%emt 0:00:08]} 19. Qf3 {[%emt 0:00:04]} Nf6 {[%emt 0:00:05]} 20. Bf5 {[%emt 0:00:37]} Bxf5 {[%emt 0:00:01]} 21. Qxf5 {[%emt 0:00:01]} Rc2 {[%emt 0:00:06]} 22. Rad1 {[%emt 0:00:01]} Rc6 {[%emt 0:00:04]} 23. b4 {[%emt 0:00:05]} Rcc8 {[%emt 0:00:03]} 24. Bg5 {[%emt 0:00:03]} h6 {[%emt 0:00:01]} 25. Bxf6 {[%emt 0:00:06]} Qxf6 {[%emt 0:00:01]} 26. Qxf6 {[%emt 0:00:02]} Bxf6 {[%emt 0:00:01]} 27. Nc5 {[%emt 0:00:00]} Rc7 {[%emt 0:00:03]} 28. Rd7 {[%emt 0:00:03]} Rxd7 {[%emt 0:00:02]} 29. Nxd7 {[%emt 0:00:00]} Rd8 {[%emt 0:00:01]} 30. Nxf6+ {[%emt 0:00:01]} gxf6 {[%emt 0:00:02]} 31. Re7 {[%emt 0:00:01]} Rd1+ {[%emt 0:00:03]} 32. Kg2 {[%emt 0:00:00]} Rd3 {[%emt 0:00:01]} 33. a4 {[%emt 0:00:03]} Ra3 {[%emt 0:00:03]} 34. a5 {[%emt 0:00:01]} Rb3 {[%emt 0:00:02]} 35. Rxb7 {[%emt 0:00:01]} a6 {[%emt 0:00:02]} 36. h4 {[%emt 0:00:00]} Kg7 {[%emt 0:00:01]} 37. Rb6 {[%emt 0:00:01]} Kg6 {[%emt 0:00:01]} 38. Kh3 {[%emt 0:00:05]} h5 {[%emt 0:00:03]} 39. Kg2 {[%emt 0:00:01]} Rb2 {[%emt 0:00:02]} 40. Kf3 {[%emt 0:00:02]} Rb3+ {[%emt 0:00:01]} 41. Ke2 {[%emt 0:00:00]} Rb2+ {[%emt 0:00:02]} 42. Ke3 {[%emt 0:00:01]} Kf5 {[%emt 0:00:04]} 43. Kd4 {[%emt 0:00:03]} Rb3 {[%emt 0:00:03]} 44. Kc4 {[%emt 0:00:02]} Rb2 {[%emt 0:00:01]} 45. Rxa6 {[%emt 0:00:01]} Rxf2 {[%emt 0:00:02]} 46. Rd6 {[%emt 0:00:01]} Rc2+ {[%emt 0:00:03]} 47. Kb3 {[%emt 0:00:03]} Rc8 {[%emt 0:00:02]} 48. b5 {[%emt 0:00:00]} Ke5 {[%emt 0:00:01]} 49. Rd3 {[%emt 0:00:01]} Ke4 {[%emt 0:00:02]} 50. Rd7 {[%emt 0:00:02]} Rg8 {[%emt 0:00:02]} 51. b6 {[%emt 0:00:02]} Rxg3+ {[%emt 0:00:02]} 52. Kb4 {[%emt 0:00:01]} f5 {[%emt 0:00:01]} 53. b7 {[%emt 0:00:01]} Rg1 {[%emt 0:00:03]} 54. a6 {[%emt 0:00:01]} Rb1+ {[%emt 0:00:02]} 55. Kc5 {[%emt 0:00:01]} f4 {[%emt 0:00:02]} 56. a7 {[%emt 0:00:01]} Rc1+ {[%emt 0:00:02]} 57. Kb6 {[%emt 0:00:03]} Rb1+ {[%emt 0:00:02]} 58. Kc7 {[%emt 0:00:01]} Rc1+ {[%emt 0:00:01]} 59. Kd8 {[%emt 0:00:01]} f3 {[%emt 0:00:03]} 60. a8=Q {[%emt 0:00:03]} 1-0

[Event "RUS-ch Women Blitz 2019"]
[Site "Sochi"]
[Date "2019.10.17"]
[Round "2.7"]
[White "Koroleva, Evgeniya"]
[Black "Sukhareva, Evgeniya"]
[Result "0-1"]
[ECO "A65"]
[WhiteElo "1855"]
[BlackElo "2122"]
[Annotator "NA"]
[PlyCount "97"]
[EventDate "2019.10.17"]
[EventType "swiss"]
[EventCountry "RUS"]
[SourceTitle "playchess.com"]
[Source "ChessBase"]
[SourceQuality "1"]
[TimeControl "180+2"]

1. d4 {[%emt 0:00:00]} Nf6 {[%emt 0:00:00]} 2. c4 {[%emt 0:00:00]} e6 {[%emt 0:00:00]} 3. Nc3 {[%emt 0:00:00]} c5 {[%emt 0:00:00]} 4. d5 {[%emt 0:00:01]} exd5 {[%emt 0:00:01]} 5. cxd5 {[%emt 0:00:00]} d6 {[%emt 0:00:00]} 6. e4 {[%emt 0:00:01]} g6 {[%emt 0:00:02]} 7. h3 {[%emt 0:00:04]} Bg7 {[%emt 0:00:01]} 8. Nf3 {[%emt 0:00:02]} a6 {[%emt 0:00:06]} 9. a4 {[%emt 0:00:00]} O-O {[%emt 0:00:02]} 10. Bd3 {[%emt 0:00:01]} Nh5 {[%emt 0:00:01]} 11. O-O {[%emt 0:00:10]} Nd7 {[%emt 0:00:01]} 12. Rb1 {[%emt 0:00:38]} Rb8 {[%emt 0:00:08]} 13. Be2 {[%emt 0:00:23]} Qe7 {[%emt 0:00:14]} 14. Bg5 {[%emt 0:00:06]} Bf6 {[%emt 0:00:02]} 15. Bh6 {[%emt 0:00:04]} Re8 {[%emt 0:00:19]} 16. Nd2 {[%emt 0:00:01]} Ng7 {[%emt 0:00:01]} 17. Bd3 {[%emt 0:00:12]} Rd8 {[%emt 0:00:07]} 18. Qc2 {[%emt 0:00:10]} Ne8 {[%emt 0:00:12]} 19. Rbe1 {[%emt 0:00:02]} Nc7 {[%emt 0:00:06]} 20. Bf4 {[%emt 0:00:03]} b5 {[%emt 0:00:07]} 21. Bg3 {[%emt 0:00:06]} bxa4 {[%emt 0:00:21]} 22. Nxa4 {[%emt 0:00:05]} Nb5 {[%emt 0:00:01]} 23. Bxb5 {[%emt 0:00:10]} axb5 {[%emt 0:00:16]} 24. Nc3 {[%emt 0:00:04]} c4 {[%emt 0:00:01]} 25. Nf3 {[%emt 0:00:08]} Ba6 {[%emt 0:00:22]} 26. Ne2 {[%emt 0:00:02]} b4 {[%emt 0:00:24]} 27. Ned4 {[%emt 0:00:04]} c3 {[%emt 0:00:24]} 28. Nc6 {[%emt 0:00:09]} Qf8 {[%emt 0:00:02]} 29. Nxd8 {[%emt 0:00:30]} Rxd8 {[%emt 0:00:07]} 30. b3 {[%emt 0:00:03]} Bxf1 {[%emt 0:00:03]} 31. Rxf1 {[%emt 0:00:01]} Qe7 {[%emt 0:00:05]} 32. Ra1 {[%emt 0:00:06]} Ne5 {[%emt 0:00:10]} 33. Nd4 {[%emt 0:00:18]} Qb7 {[%emt 0:00:09]} 34. Bxe5 {[%emt 0:00:02]} Bxe5 {[%emt 0:00:03]} 35. Nc6 {[%emt 0:00:01]} Re8 {[%emt 0:00:04]} 36. g3 {[%emt 0:00:05]} Bg7 {[%emt 0:00:03]} 37. Ra4 {[%emt 0:00:04]} Qd7 {[%emt 0:00:04]} 38. Kg2 {[%emt 0:00:03]} f5 {[%emt 0:00:03]} 39. Rxb4 {[%emt 0:00:03]} Qf7 {[%emt 0:00:02]} 40. f3 {[%emt 0:00:07]} fxe4 {[%emt 0:00:02]} 41. fxe4 {[%emt 0:00:01]} Rf8 {[%emt 0:00:01]} 42. h4 {[%emt 0:00:10]} Qf1+ 43. Kh2 Rf2+ {[%emt 0:00:02]} 44. Qxf2 {[%emt 0:00:02]} Qxf2+ {[%emt 0:00:00]} 45. Kh3 {[%emt 0:00:01]} c2 {[%emt 0:00:02]} 46. Rb7 {[%emt 0:00:02]} c1=R {[%emt 0:00:04]} 47. Ne7+ {[%emt 0:00:00]} Kf8 {[%emt 0:00:02]} 48. Nxg6+ {[%emt 0:00:03]} hxg6 {[%emt 0:00:01]} 49. Rb8+ {[%emt 0:00:00]} 0-1

[Event "RUS-ch Women Blitz 2019"]
[Site "Sochi"]
[Date "2019.10.17"]
[Round "2.8"]
[White "Lysenko, Margarita"]
[Black "Gutkovich, Polina"]
[Result "1-0"]
[ECO "A67"]
[WhiteElo "2243"]
[BlackElo "2105"]
[Annotator "NA"]
[PlyCount "71"]
[EventDate "2019.10.17"]
[EventType "swiss"]
[EventCountry "RUS"]
[SourceTitle "playchess.com"]
[Source "ChessBase"]
[SourceQuality "1"]
[TimeControl "180+2"]

1. d4 {[%emt 0:00:00]} Nf6 {[%emt 0:00:01]} 2. c4 {[%emt 0:00:00]} e6 {[%emt 0:00:01]} 3. Nc3 {[%emt 0:00:06]} c5 {[%emt 0:00:01]} 4. d5 {[%emt 0:00:09]} exd5 {[%emt 0:00:01]} 5. cxd5 {[%emt 0:00:01]} d6 {[%emt 0:00:00]} 6. e4 {[%emt 0:00:06]} g6 {[%emt 0:00:02]} 7. f4 {[%emt 0:00:04]} Bg7 {[%emt 0:00:01]} 8. Bb5+ {[%emt 0:00:01]} Nfd7 {[%emt 0:00:01]} 9. Bd3 {[%emt 0:00:01]} O-O {[%emt 0:00:03]} 10. Nf3 {[%emt 0:00:01]} Na6 {[%emt 0:00:09]} 11. O-O {[%emt 0:00:05]} Nf6 {[%emt 0:00:29]} 12. Re1 {[%emt 0:00:13]} Re8 {[%emt 0:00:24]} 13. h3 {[%emt 0:00:06]} Nc7 {[%emt 0:00:07]} 14. a4 {[%emt 0:00:18]} a6 {[%emt 0:00:08]} 15. Bc4 {[%emt 0:00:09]} Rb8 {[%emt 0:00:13]} 16. e5 {[%emt 0:00:16]} Nh5 {[%emt 0:00:44]} 17. a5 {[%emt 0:00:53]} b5 {[%emt 0:00:18]} 18. axb6 {[%emt 0:00:02]} Rxb6 {[%emt 0:00:01]} 19. Ne4 {[%emt 0:00:16]} Nxf4 {[%emt 0:00:35]} 20. Bxf4 {[%emt 0:00:04]} dxe5 {[%emt 0:00:01]} 21. Be3 {[%emt 0:00:13]} Rxb2 {[%emt 0:00:05]} 22. Ra2 {[%emt 0:00:16]} Rb4 {[%emt 0:00:03]} 23. Qc1 {[%emt 0:00:18]} Bf5 {[%emt 0:00:10]} 24. Ng3 {[%emt 0:00:02]} Rb1 {[%emt 0:00:03]} 25. Qd2 {[%emt 0:00:01]} Rxe1+ {[%emt 0:00:01]} 26. Qxe1 {[%emt 0:00:02]} Nxd5 {[%emt 0:00:03]} 27. Nxf5 {[%emt 0:00:04]} gxf5 {[%emt 0:00:01]} 28. Bg5 {[%emt 0:00:05]} Qd7 {[%emt 0:00:05]} 29. Rd2 {[%emt 0:00:02]} e4 {[%emt 0:00:03]} 30. Rxd5 {[%emt 0:00:02]} Qc8 {[%emt 0:00:03]} 31. Nd2 {[%emt 0:00:02]} h6 {[%emt 0:00:02]} 32. Bf4 {[%emt 0:00:01]} Bd4+ {[%emt 0:00:01]} 33. Kh2 {[%emt 0:00:01]} Qe6 {[%emt 0:00:02]} 34. Qg3+ {[%emt 0:00:01]} Qg6 {[%emt 0:00:01]} 35. Qxg6+ {[%emt 0:00:02]} fxg6 {[%emt 0:00:01]} 36. Rxd4+ {[%emt 0:00:03]} 1-0

[Event "RUS-ch Women Blitz 2019"]
[Site "Sochi"]
[Date "2019.10.17"]
[Round "2.9"]
[White "Gubernatorova, Lyudmila"]
[Black "Chernyak, Viktoria"]
[Result "1-0"]
[ECO "D31"]
[WhiteElo "2200"]
[BlackElo "2284"]
[Annotator "NA"]
[PlyCount "98"]
[EventDate "2019.10.17"]
[EventType "swiss"]
[EventCountry "RUS"]
[SourceTitle "playchess.com"]
[Source "ChessBase"]
[SourceQuality "1"]
[TimeControl "180+2"]

1. d4 {[%emt 0:00:00]} d5 {[%emt 0:00:00]} 2. c4 {[%emt 0:00:00]} e6 {[%emt 0:00:00]} 3. Nc3 {[%emt 0:00:00]} c6 {[%emt 0:00:01]} 4. e4 {[%emt 0:00:03]} dxe4 {[%emt 0:00:02]} 5. Nxe4 {[%emt 0:00:01]} Bb4+ {[%emt 0:00:01]} 6. Nc3 {[%emt 0:00:01]} Nf6 {[%emt 0:00:07]} 7. a3 {[%emt 0:00:02]} Be7 {[%emt 0:00:05]} 8. Nf3 {[%emt 0:00:02]} O-O {[%emt 0:00:02]} 9. Bd3 {[%emt 0:00:03]} c5 {[%emt 0:00:03]} 10. dxc5 {[%emt 0:00:07]} Bxc5 {[%emt 0:00:04]} 11. Qe2 {[%emt 0:00:04]} Nc6 {[%emt 0:00:06]} 12. O-O {[%emt 0:00:03]} a5 {[%emt 0:00:09]} 13. Bg5 {[%emt 0:00:02]} h6 {[%emt 0:00:01]} 14. Bh4 {[%emt 0:00:01]} Be7 {[%emt 0:00:05]} 15. Rad1 {[%emt 0:00:08]} Qb6 {[%emt 0:00:02]} 16. Rd2 {[%emt 0:00:13]} Re8 {[%emt 0:00:16]} 17. Rfd1 {[%emt 0:00:03]} Qc5 {[%emt 0:00:05]} 18. h3 {[%emt 0:00:10]} a4 {[%emt 0:00:11]} 19. Bxf6 {[%emt 0:00:08]} Bxf6 {[%emt 0:00:02]} 20. Ne4 {[%emt 0:00:01]} Qe7 {[%emt 0:00:05]} 21. c5 {[%emt 0:00:08]} e5 {[%emt 0:00:17]} 22. Nd6 {[%emt 0:00:11]} Rd8 {[%emt 0:00:08]} 23. Bf5 {[%emt 0:00:06]} Bxf5 {[%emt 0:00:11]} 24. Nxf5 {[%emt 0:00:02]} Qxc5 {[%emt 0:00:03]} 25. Nd6 {[%emt 0:00:18]} Rab8 {[%emt 0:00:11]} 26. Ne4 {[%emt 0:00:05]} Qe7 {[%emt 0:00:01]} 27. Qb5 {[%emt 0:00:05]} Nd4 {[%emt 0:00:13]} 28. Nxd4 {[%emt 0:00:16]} Rxd4 {[%emt 0:00:08]} 29. Rxd4 {[%emt 0:00:05]} exd4 {[%emt 0:00:02]} 30. Nxf6+ {[%emt 0:00:03]} Qxf6 {[%emt 0:00:01]} 31. Qxa4 {[%emt 0:00:01]} Rd8 {[%emt 0:00:03]} 32. Rd3 {[%emt 0:00:04]} g6 {[%emt 0:00:04]} 33. Qb3 {[%emt 0:00:07]} Qc6 {[%emt 0:00:02]} 34. Qb4 {[%emt 0:00:15]} Qc1+ {[%emt 0:00:08]} 35. Kh2 {[%emt 0:00:01]} Qf4+ {[%emt 0:00:01]} 36. Kg1 {[%emt 0:00:06]} Qe4 {[%emt 0:00:03]} 37. Qd2 {[%emt 0:00:08]} h5 {[%emt 0:00:08]} 38. b4 {[%emt 0:00:03]} b5 {[%emt 0:00:04]} 39. Qd1 {[%emt 0:00:08]} Qf4 {[%emt 0:00:04]} 40. Qd2 {[%emt 0:00:03]} Qe5 {[%emt 0:00:07]} 41. Qd1 {[%emt 0:00:05]} Rd6 {[%emt 0:00:08]} 42. g3 {[%emt 0:00:07]} Qe4 {[%emt 0:00:08]} 43. Qd2 {[%emt 0:00:05]} Rd5 {[%emt 0:00:06]} 44. h4 {[%emt 0:00:02]} Qe5 {[%emt 0:00:07]} 45. Qd1 {[%emt 0:00:02]} Qe4 {[%emt 0:00:05]} 46. Qd2 {[%emt 0:00:01]} Rd6 {[%emt 0:00:01]} 47. Qd1 {[%emt 0:00:01]} Kg7 {[%emt 0:00:03]} 48. Qd2 {[%emt 0:00:00]} Qe5 {[%emt 0:00:07]} 49. Qd1 {[%emt 0:00:02]} Qe4 {[%emt 0:00:05]} 1-0

[Event "RUS-ch Women Blitz 2019"]
[Site "Sochi"]
[Date "2019.10.17"]
[Round "2.10"]
[White "Styazhkina, Anna"]
[Black "Chan, Naruna"]
[Result "1-0"]
[ECO "B32"]
[WhiteElo "2280"]
[BlackElo "1936"]
[Annotator "NA"]
[PlyCount "45"]
[EventDate "2019.10.17"]
[EventType "swiss"]
[EventCountry "RUS"]
[SourceTitle "playchess.com"]
[Source "ChessBase"]
[SourceQuality "1"]
[TimeControl "180+2"]

1. e4 {[%emt 0:00:00]} c5 {[%emt 0:00:00]} 2. Nf3 {[%emt 0:00:03]} Nc6 {[%emt 0:00:00]} 3. d4 {[%emt 0:00:02]} cxd4 {[%emt 0:00:02]} 4. Nxd4 {[%emt 0:00:05]} e5 {[%emt 0:00:01]} 5. Nb5 {[%emt 0:00:06]} d6 {[%emt 0:00:01]} 6. N1c3 {[%emt 0:00:12]} a6 {[%emt 0:00:01]} 7. Na3 {[%emt 0:00:02]} Be6 {[%emt 0:00:05]} 8. Nc4 {[%emt 0:00:17]} b5 {[%emt 0:00:13]} 9. Ne3 {[%emt 0:00:04]} Be7 {[%emt 0:00:02]} 10. a4 {[%emt 0:00:06]} b4 {[%emt 0:00:13]} 11. Ncd5 {[%emt 0:00:02]} Bg5 {[%emt 0:00:30]} 12. Nc4 {[%emt 0:00:34]} Bxc1 {[%emt 0:00:12]} 13. Rxc1 {[%emt 0:00:01]} Rb8 {[%emt 0:00:54]} 14. Nde3 {[%emt 0:00:54]} Ke7 {[%emt 0:00:56]} 15. Be2 {[%emt 0:00:05]} Nf6 {[%emt 0:00:02]} 16. f3 {[%emt 0:00:12]} Re8 {[%emt 0:00:02]} 17. O-O {[%emt 0:00:05]} Bxc4 {[%emt 0:00:07]} 18. Bxc4 {[%emt 0:00:12]} Qb6 {[%emt 0:00:07]} 19. Qd2 {[%emt 0:00:06]} Kf8 {[%emt 0:00:02]} 20. Kh1 {[%emt 0:00:04]} Red8 {[%emt 0:00:02]} 21. Nf5 {[%emt 0:00:05]} Nd4 {[%emt 0:00:05]} 22. Nxg7 {[%emt 0:00:08]} Kxg7 {[%emt 0:00:07]} 23. Qg5+ {[%emt 0:00:02]} 1-0

[Event "RUS-ch Women Blitz 2019"]
[Site "Sochi"]
[Date "2019.10.17"]
[Round "2.11"]
[White "Charochkina, Daria"]
[Black "Mukhina, Jana"]
[Result "1/2-1/2"]
[ECO "A02"]
[WhiteElo "2355"]
[BlackElo "2105"]
[Annotator "NA"]
[PlyCount "69"]
[EventDate "2019.10.17"]
[EventType "swiss"]
[EventCountry "RUS"]
[SourceTitle "playchess.com"]
[Source "ChessBase"]
[SourceQuality "1"]
[TimeControl "180+2"]

1. f4 {[%emt 0:00:00]} Nf6 {[%emt 0:00:00]} 2. Nf3 {[%emt 0:00:01]} g6 {[%emt 0:00:01]} 3. b4 {[%emt 0:00:03]} Bg7 {[%emt 0:00:01]} 4. Bb2 {[%emt 0:00:00]} O-O {[%emt 0:00:01]} 5. e3 {[%emt 0:00:01]} a5 {[%emt 0:00:01]} 6. b5 {[%emt 0:00:01]} d6 {[%emt 0:00:00]} 7. Be2 {[%emt 0:00:07]} c5 {[%emt 0:00:02]} 8. bxc6 {[%emt 0:00:14]} bxc6 {[%emt 0:00:06]} 9. O-O {[%emt 0:00:03]} Ba6 {[%emt 0:00:01]} 10. c4 {[%emt 0:00:04]} Nbd7 {[%emt 0:00:04]} 11. Nc3 {[%emt 0:00:01]} Rb8 {[%emt 0:00:01]} 12. Rb1 {[%emt 0:00:02]} Qc7 {[%emt 0:00:03]} 13. Qc2 {[%emt 0:00:06]} Nc5 {[%emt 0:00:34]} 14. f5 {[%emt 0:00:11]} Bc8 {[%emt 0:00:03]} 15. Nd4 {[%emt 0:00:08]} e5 {[%emt 0:00:05]} 16. fxe6 {[%emt 0:00:03]} Nxe6 {[%emt 0:00:01]} 17. Na4 {[%emt 0:00:05]} Nxd4 {[%emt 0:00:31]} 18. Bxd4 {[%emt 0:00:02]} Bf5 {[%emt 0:00:05]} 19. d3 {[%emt 0:00:01]} Rxb1 {[%emt 0:00:29]} 20. Qxb1 {[%emt 0:00:01]} Ne8 {[%emt 0:00:55]} 21. Qa1 {[%emt 0:00:09]} Bxd4 {[%emt 0:00:05]} 22. Qxd4 {[%emt 0:00:01]} Ng7 {[%emt 0:00:02]} 23. c5 {[%emt 0:00:16]} d5 {[%emt 0:00:15]} 24. e4 {[%emt 0:00:27]} dxe4 {[%emt 0:00:01]} 25. dxe4 {[%emt 0:00:01]} Rd8 {[%emt 0:00:01]} 26. Qc4 {[%emt 0:00:19]} Be6 {[%emt 0:00:01]} 27. Qc2 {[%emt 0:00:01]} Qe5 {[%emt 0:00:03]} 28. Kh1 {[%emt 0:00:40]} Rd4 {[%emt 0:00:02]} 29. Bf3 {[%emt 0:00:22]} Rc4 {[%emt 0:00:06]} 30. Qd1 {[%emt 0:00:01]} Rd4 {[%emt 0:00:01]} 31. Qc2 {[%emt 0:00:00]} Rc4 {[%emt 0:00:01]} 32. Qd1 {[%emt 0:00:01]} Rd4 {[%emt 0:00:01]} 33. Qc2 {[%emt 0:00:00]} Rc4 {[%emt 0:00:14]} 34. Qd1 {[%emt 0:00:01]} Rd4 {[%emt 0:00:01]} 35. Qc2 1/2-1/2

[Event "RUS-ch Women Blitz 2019"]
[Site "Sochi"]
[Date "2019.10.20"]
[Round "2.12"]
[White "Gritsayeva, Oksana"]
[Black "Markelova, Lubov"]
[Result "1-0"]
[ECO "C01"]
[WhiteElo "2370"]
[BlackElo "2198"]
[Annotator "NA"]
[PlyCount "61"]
[EventDate "2019.10.17"]
[EventType "swiss"]
[EventCountry "RUS"]
[SourceTitle "playchess.com"]
[Source "ChessBase"]
[SourceQuality "1"]
[TimeControl "180+2"]

1. e4 {[%emt 0:00:00]} e6 {[%emt 0:00:00]} 2. d4 {[%emt 0:00:00]} d5 {[%emt 0:00:00]} 3. exd5 {[%emt 0:00:03]} exd5 {[%emt 0:00:01]} 4. Nf3 {[%emt 0:00:01]} Bd6 {[%emt 0:00:03]} 5. Bd3 {[%emt 0:00:01]} Nc6 {[%emt 0:00:11]} 6. O-O {[%emt 0:00:05]} Nge7 {[%emt 0:00:02]} 7. h3 {[%emt 0:00:03]} Nb4 {[%emt 0:00:03]} 8. Be2 {[%emt 0:00:06]} Bf5 {[%emt 0:00:03]} 9. Na3 {[%emt 0:00:02]} c6 {[%emt 0:00:24]} 10. c3 {[%emt 0:00:01]} Na6 {[%emt 0:00:01]} 11. Nc2 {[%emt 0:00:04]} O-O {[%emt 0:00:06]} 12. Ne3 {[%emt 0:00:07]} Be4 {[%emt 0:00:09]} 13. Nd2 {[%emt 0:00:16]} Bg6 {[%emt 0:00:05]} 14. f4 {[%emt 0:00:10]} Nf5 {[%emt 0:00:14]} 15. Nxf5 {[%emt 0:00:13]} Bxf5 {[%emt 0:00:01]} 16. Nf3 {[%emt 0:00:02]} Nc7 {[%emt 0:00:07]} 17. Bd3 {[%emt 0:00:10]} Bxd3 {[%emt 0:00:22]} 18. Qxd3 {[%emt 0:00:01]} Ne6 {[%emt 0:00:18]} 19. f5 {[%emt 0:00:08]} Nf4 {[%emt 0:00:09]} 20. Bxf4 {[%emt 0:00:03]} Bxf4 {[%emt 0:00:01]} 21. Rae1 {[%emt 0:00:05]} Re8 {[%emt 0:00:16]} 22. Ne5 {[%emt 0:00:07]} Qg5 {[%emt 0:00:19]} 23. Qf3 {[%emt 0:00:16]} Bg3 {[%emt 0:00:34]} 24. Re3 {[%emt 0:00:07]} f6 {[%emt 0:00:04]} 25. Qxg3 {[%emt 0:00:03]} Qxg3 {[%emt 0:00:01]} 26. Rxg3 {[%emt 0:00:01]} fxe5 {[%emt 0:00:01]} 27. f6 {[%emt 0:00:01]} Re6 {[%emt 0:00:12]} 28. Rxg7+ {[%emt 0:00:05]} Kf8 {[%emt 0:00:01]} 29. Rxh7 {[%emt 0:00:02]} Rae8 {[%emt 0:00:03]} 30. f7 {[%emt 0:00:08]} Rd8 {[%emt 0:00:06]} 31. Rh8+ {[%emt 0:00:02]} 1-0